lending/lending_fUSD_20250425
["ID","MTS","AMOUNT","RATE_DAILY","PERIOD"]
[358935794,1745559047260,-151.0,0.00035,7]
[358935795,1745559047271,-151.0,0.00035,7]
[358935796,1745559047281,-159.669183,0.00035,7]
[358935797,1745559047292,-159.669183,0.00035,7]
[358935798,1745559047302,-151.0,0.00035,7]
[358935799,1745559047312,-151.0,0.00035,7]
[358935800,1745559047322,-151.0,0.00035,7]
[358935801,1745559047331,-151.0,0.00035,7]
[358935802,1745559047341,-2471.564,0.0003501,2]
[358935803,1745559047350,-287.726,0.0003501,2]
[358935804,1745559047361,-157.34,0.00035068,2]
[358935805,1745559047371,-349.31,0.000355,7]
[358935806,1745559047380,-2244.8611405,0.00035866,12]
[358935807,1745559047390,-150.0,0.00035929,3]
[358935808,1745559047400,-220064.76245385,0.0003593,7]
[358935809,1745559047410,-1128.76,0.00036016,2]
[358935810,1745559047420,-174.05559039,0.000361,2]
[358935811,1745559047430,-477.66,0.00036139,30]
[358935812,1745559047440,-1500.0,0.00036882,5]
[358935813,1745559047450,-2244.8611405,0.00036934,13]
[358935814,1745559047460,-151.13,0.00036986,2]
[358935815,1745559047470,-25000.0,0.00037,20]
[358935816,1745559047479,-152.0,0.0003766,3]
[358935817,1745559047488,-355.061,0.00037665,49]
[358935818,1745559047498,-2000.0,0.00037778,4]
[358935819,1745559047507,-198.23312512,0.00037967,2]
[358935820,1745559047517,-157.0,0.00038,112]
[358935821,1745559047527,-2244.8611405,0.00038003,14]
[358935822,1745559047536,-1128.76,0.0003828,2]
[358935823,1745559047545,-212.72869999,0.00038356,2]
[358935824,1745559047555,-4961.03,0.000384,14]
[358935825,1745559047565,-666.0,0.00038656,10]
[358935826,1745559047575,-666.0,0.00038656,10]
[358935827,1745559047585,-151.0,0.00038657,30]
[358935828,1745559047595,-235.33061585,0.00038657,30]
[358935829,1745559047604,-999.0,0.00038657,7]
[358935830,1745559047614,-999.0,0.00038657,7]
[358935831,1745559047623,-999.0,0.00038657,7]
[358935832,1745559047633,-999.0,0.00038657,7]
[358935833,1745559047642,-999.0,0.00038657,7]
[358935834,1745559047652,-999.0,0.00038657,7]
[358935835,1745559047662,-999.0,0.00038657,7]
[358935836,1745559047671,-999.0,0.00038657,7]
[358935837,1745559047681,-999.0,0.00038657,7]
[358935838,1745559047690,-999.0,0.00038657,7]
[358935839,1745559047700,-999.0,0.00038657,7]
[358935840,1745559047709,-999.0,0.00038657,7]
[358935841,1745559047719,-999.0,0.00038657,7]
[358935842,1745559047729,-999.0,0.00038657,7]
[358935843,1745559047739,-999.0,0.00038657,7]
[358935844,1745559047749,-999.0,0.00038657,7]
[358935845,1745559047759,-999.0,0.00038657,7]
[358935846,1745559047769,-999.0,0.00038657,7]
[358935847,1745559047778,-999.0,0.00038657,7]
[358935848,1745559047788,-999.0,0.00038657,7]
[358935849,1745559047798,-999.0,0.00038657,7]
[358935850,1745559047807,-999.0,0.00038657,7]
[358935851,1745559047817,-999.0,0.00038657,7]
[358935852,1745559047827,-878.38426718,0.00038657,7]
[358935853,1745559047837,-152.0,0.00038857,4]
[358935854,1745559047847,-7525.17942064,0.0003899,14]
[358935855,1745559047856,-358.799999,0.00039,58]
[358935856,1745559047866,-199.47492282,0.00039,120]
[358935857,1745559047876,-2244.8611405,0.00039072,15]
[358935858,1745559047885,-8248.06974905,0.00039673,2]
[358935859,1745559047895,-4715.2082229,0.00039973,2]
[358935860,1745559047905,-4263.6330863,0.00039973,2]
[358935861,1745559047916,-140786.8659181,0.00039973,2]
[358935862,1745559047925,-25996.2270587,0.00039973,2]
[358935863,1745559047935,-151.0,0.00039973,14]
[358935864,1745559047944,-151.0,0.00039973,14]
[358935865,1745559047954,-151.0,0.00039973,14]
[358935866,1745559047964,-666.0,0.00039999,10]
[358935867,1745559047974,-500.0,0.00039999,31]
[358935868,1745559047984,-500.0,0.00039999,31]
[358935869,1745559047994,-500.0,0.00039999,31]
[358935870,1745559048004,-500.0,0.00039999,31]
[358935871,1745559048014,-500.0,0.00039999,31]
[358935872,1745559048025,-500.0,0.00039999,31]
[358935873,1745559048035,-500.0,0.00039999,31]
[358935874,1745559048046,-500.0,0.00039999,31]
[358935875,1745559048056,-150.11278814,0.00039999,31]
[358935876,1745559048067,-500.0,0.00039999,31]
[358935877,1745559048078,-500.0,0.00039999,31]
[358935878,1745559048088,-500.0,0.00039999,31]
[358935879,1745559048099,-500.0,0.00039999,31]
[358935880,1745559048109,-500.0,0.00039999,31]
[358935881,1745559048119,-500.0,0.00039999,31]
[358935882,1745559048130,-500.0,0.00039999,31]
[358935883,1745559048141,-500.0,0.00039999,31]
[358935884,1745559048152,-500.0,0.00039999,31]
[358935885,1745559048162,-500.0,0.00039999,31]
[358935886,1745559048178,-500.0,0.00039999,31]
[358935887,1745559048187,-500.0,0.00039999,31]
[358935888,1745559048197,-376.91501284,0.00039999,7]
[358935889,1745559048208,-387.68655312,0.00039999,31]
[358935890,1745559048219,-409.23095091,0.00039999,31]
[358935891,1745559048229,-460.50230726,0.00039999,31]
[358935892,1745559048240,-150.0,0.00039999,3]
[358935893,1745559048250,-150.0,0.00039999,3]
[358935894,1745559048260,-150.0,0.00039999,3]
[358935895,1745559048270,-200.0,0.0004,61]
[358935896,1745559048282,-2665.20865348,0.0004,4]
[358935897,1745559048293,-423.95,0.0004,10]
[358935898,1745559048303,-56406.58321743,0.0004,2]
[358935899,1745559048312,-1210966.77627375,0.0004,30]
[358935900,1745559050222,-151.0,0.000248,7]
[358935901,1745559050232,-151.0,0.000249,7]
[358935902,1745559050241,-95.43301245,0.00035,7]
[358935903,1745559050269,-55.56698755,0.00035,7]
[358935904,1745559050280,-151.0,0.00039973,14]
[358935905,1745559050291,-22705.07151393,0.0004,30]
[358935906,1745559051014,-58227.37581141,0.0004,30]
[358935907,1745559051025,-5610.83319323,0.0004,10]
[358935908,1745559051035,-25000.0,0.0004,20]
[358935909,1745559051046,-151.0,0.0004,14]
[358935910,1745559051055,-157.64,0.0004,30]
[358935911,1745559051065,-332.571194,0.0004,14]
[358935912,1745559051075,-332.571194,0.0004,14]
[358935913,1745559051084,-4961.03,0.0004,14]
[358935914,1745559051094,-151.0,0.0004,14]
[358935915,1745559051104,-151.0,0.0004,14]
[358935916,1745559051114,-151.0,0.0004,14]
[358935917,1745559051125,-151.0,0.0004,14]
[358935918,1745559051135,-151.0,0.0004,14]
[358935919,1745559051144,-151.0,0.0004,14]
[358935920,1745559051154,-151.0,0.0004,14]
[358935921,1745559051164,-151.0,0.0004,14]
[358935922,1745559051174,-1732.6465726,0.0004,10]
[358935923,1745559051184,-151.0,0.0004,14]
[358935924,1745559051193,-151.0,0.0004,14]
[358935925,1745559051203,-151.0,0.0004,14]
[358935926,1745559051213,-153.720785,0.0004,14]
[358935927,1745559051222,-151.0,0.0004,14]
[358935928,1745559051231,-159.669183,0.0004,14]
[358935929,1745559051240,-159.669183,0.0004,14]
[358935930,1745559051250,-151.0,0.0004,14]
[358935931,1745559051259,-5318.13042435,0.0004,30]
[358935932,1745559051269,-151.0,0.0004,14]
[358935933,1745559051280,-151.0,0.0004,14]
[358935934,1745559051291,-151.0,0.0004,14]
[358935935,1745559051301,-151.0,0.0004,14]
[358935936,1745559051311,-152.0,0.00040054,5]
[358935937,1745559051320,-151.327263,0.00040129,14]
[358935938,1745559051329,-151.0,0.00040129,14]
[358935939,1745559051338,-431.517029,0.00040129,14]
[358935940,1745559051348,-151.0,0.00040129,14]
[358935941,1745559051358,-151.0,0.00040129,14]
[358935942,1745559051367,-151.0,0.00040129,14]
[358935943,1745559051377,-151.0,0.00040129,14]
[358935944,1745559051386,-54447.67333967,0.0004013,2]
[358935945,1745559056165,151.0,0.0002,7]
[358935946,1745559056526,151.0,0.0002,7]
[358935947,1745559057247,151.0,0.0002,7]
[358935948,1745559057338,151.0,0.0002,7]
[358935950,1745559089030,173.3503068,0.000372,120]
[358935953,1745559211348,2000.0,0.00037808,60]
[358935954,1745559228458,2000.0,0.00037808,60]
[358935955,1745559237794,2000.0,0.00037808,60]
[358935956,1745559245359,2000.0,0.00037808,60]
[358935958,1745559254685,283.94,0.00033026,120]
[358935959,1745559254802,283.94,0.00037154,120]
[358935960,1745559257842,624.84591534,0.00037808,60]
[358935961,1745559257950,2000.0,0.00037808,60]
[358935964,1745559311202,250.0,0.00017,2]
[358935965,1745559312407,300.0,0.00019,2]
[358935967,1745559339491,1000.0,0.00037,60]
[358935984,1745559417683,1000.0,0.00037,60]
[358935999,1745559488391,2500.0,7.945e-05,2]
[358936000,1745559488418,3822.183435,7.945e-05,2]
[358936026,1745559586264,1000.0,0.00037808,60]
[358936054,1745559683016,1000.0,0.00037808,60]
[358936068,1745559725737,1500.0,0.00037808,60]
[358936113,1745559854391,756.0,0.00037808,60]
[358936132,1745559930403,242.76,0.00034041,120]
[358936192,1745560112069,229.2913628,0.000378,120]
[358936284,1745560232007,-350.0,0.00021,2]
[358936285,1745560232018,-200.0,0.00021018,2]
[358936286,1745560232028,-200.0,0.00021037,2]
[358936287,1745560232038,-151.61911635,0.00021527,2]
[358936288,1745560232049,-200.0,0.00021627,2]
[358936289,1745560232059,-150.0,0.00021917,2]
[358936290,1745560232070,-400.0,0.00023,2]
[358936291,1745560232080,-200.0,0.000231,2]
[358936292,1745560232090,-108.93940853,0.000231,2]
[358936293,1745560232115,-141.06059147,0.000231,2]
[358936294,1745560232126,-200.0,0.000231,2]
[358936295,1745560232136,-151.61911635,0.00023114,2]
[358936296,1745560232146,-150.0,0.00023287,2]
[358936297,1745560232157,-150.99,0.00023368,2]
[358936298,1745560232168,-887.89,0.00023368,2]
[358936299,1745560232179,-298.53183525,0.00024657,2]
[358936300,1745560232190,-300.0,0.00024674,2]
[358936301,1745560232200,-300.0,0.00024674,2]
[358936302,1745560232210,-1284.25670451,0.00024675,2]
[358936303,1745560232293,-6947.73329549,0.00024675,2]
[358936305,1745560232304,-999.99,0.0002468,2]
[358936306,1745560232314,-3172.84,0.0002468,2]
[358936308,1745560232324,-177.59370393,0.0002468,2]
[358936528,1745560238006,-9822.39629607,0.0002468,2]
[358936529,1745560238015,-151.61911635,0.000247,2]
[358936530,1745560238025,-2244.86114067,0.000249,5]
[358936531,1745560238035,-54.70289458,0.00025,2]
[358936532,1745560238047,-395.29710542,0.00025,2]
[358936533,1745560238058,-502.154684,0.0002562,2]
[358936534,1745560238068,-502.58981162,0.0002566,2]
[358936535,1745560238077,-500.0,0.0002566,2]
[358936536,1745560238086,-500.0,0.0002566,2]
[358936537,1745560238096,-501.02512996,0.0002566,2]
[358936538,1745560238106,-500.0,0.0002566,2]
[358936539,1745560238115,-500.0,0.0002566,2]
[358936540,1745560238125,-558.63313616,0.0002566,2]
[358936541,1745560238135,-2244.8611405,0.00025866,6]
[358936542,1745560238144,-420.0,0.00026739,2]
[358936543,1745560238154,-2244.8611405,0.00026831,6]
[358936544,1745560238164,-500.0,0.00027,2]
[358936545,1745560238174,-2244.8611405,0.00027797,7]
[358936546,1745560238184,-1265.69942534,0.00028762,8]
[358936598,1745560240458,-979.16171516,0.00028762,8]
[358936599,1745560240468,-520.83828484,0.00028977,2]
[358936789,1745560243290,-66.16171516,0.00028977,2]
[358936790,1745560243301,-2244.8611405,0.00029728,8]
[358936791,1745560243311,-222.49970333,0.0002999,2]
[358936792,1745560243321,-1964.40794501,0.0002999,2]
[358936798,1745560322823,200.0,0.00032573,117]
[358936799,1745560322874,200.0,0.00029801,117]
[358936800,1745560322932,200.0,0.00030287,117]
[358936809,1745560386261,178.28,0.00036165,120]
[358936818,1745560441725,200.0,0.00027753,117]
[358936819,1745560441802,200.0,0.00027421,117]
[358936820,1745560441872,200.0,0.00028907,117]
[358936825,1745560552222,203.0,0.000378,60]
[358936828,1745560561409,200.0,0.00032573,117]
[358936829,1745560561475,200.0,0.00029706,117]
[358936830,1745560561546,200.0,0.00029861,117]
[358936833,1745560626074,1721.07312611,0.00037808,60]
[358936855,1745560681539,200.0,0.00029403,117]
[358936856,1745560681603,200.0,0.00028171,117]
[358936857,1745560681664,200.0,0.00029224,117]
[358936858,1745560710505,534.0,0.00037808,60]
[358936859,1745560804583,200.0,0.000275,117]
[358936860,1745560804664,200.0,0.00025865,117]
[358936861,1745560804747,200.0,0.00027706,117]
[358936865,1745560921685,200.0,0.000275,117]
[358936866,1745560921757,200.0,0.00025865,117]
[358936867,1745560921872,200.0,0.00027706,117]
[358936868,1745560999869,2000.0,0.00037808,60]
[358936869,1745560999975,2000.0,0.00037808,60]
[358936870,1745561000201,2000.0,0.00037808,60]
[358936871,1745561000501,2000.0,0.00037808,60]
[358936872,1745561000820,2000.0,0.00037808,60]
[358936873,1745561001171,2000.0,0.00037808,60]
[358936874,1745561001422,2000.0,0.00037808,60]
[358936875,1745561001730,2000.0,0.00037808,60]
[358936876,1745561002038,2000.0,0.00037808,60]
[358936877,1745561002339,2000.0,0.00037808,60]
[358936878,1745561042228,200.0,0.000275,117]
[358936879,1745561042273,200.0,0.00025865,117]
[358936880,1745561042588,200.0,0.00027468,117]
[358936881,1745561101188,2000.0,0.00037808,120]
[358936882,1745561101485,2000.0,0.0003726,120]
[358936883,1745561101823,2000.0,0.00036712,120]
[358936884,1745561102507,2000.0,0.00036164,120]
[358936885,1745561102845,2000.0,0.00035616,120]
[358936886,1745561119260,250.0,0.00017,2]
[358936887,1745561120452,152.0,0.00019,2]
[358936888,1745561120478,148.0,0.00019,2]
[358936889,1745561125652,-208.60149498,0.00021,2]
[358936890,1745561131663,-141.39850502,0.00021,2]
[358936891,1745561131688,-21.32049498,0.00023,2]
[358936892,1745561139688,-200.0,0.00023,2]
[358936893,1745561142537,-178.67950502,0.00023,2]
[358936894,1745561142561,-9.56040618,0.00025,30]
[358936895,1745561162889,200.0,0.000275,117]
[358936896,1745561162975,200.0,0.00025,117]
[358936897,1745561163055,200.0,0.00026073,117]
[358936910,1745561281309,200.0,0.000275,117]
[358936911,1745561281368,200.0,0.00025433,117]
[358936912,1745561281439,200.0,0.00026454,117]
[358936931,1745561360207,1897.0,0.00037808,60]
[358936938,1745561372163,1820.2,0.00037808,60]
[358936942,1745561405740,1500.0,0.00037808,60]
[358936943,1745561418461,500.0,0.00037808,60]
[358936948,1745561432176,-154.06956508,0.000245,3]
[358936949,1745561432186,-250.0,0.00024625,2]
[358936950,1745561432196,-200.0,0.0002475,2]
[358936951,1745561432205,-450.0,0.00025,2]
[358936952,1745561432214,-250.0,0.00025035,2]
[358936953,1745561432223,-474.9513468,0.00025391,2]
[358936954,1745561432232,-200.0,0.00025532,2]
[358936955,1745561432241,-200.0,0.0002695,2]
[358936956,1745561432251,-250.0,0.0002695,2]
[358936957,1745561432260,-500.0,0.00027,2]
[358936958,1745561432270,-2055.68,0.00027,2]
[358936959,1745561432279,-550.0,0.00029,2]
[358936960,1745561432288,-778.89772591,0.00029361,2]
[358936961,1745561432297,-174.39,0.00029612,2]
[358936962,1745561432307,-778.89772591,0.0002965,2]
[358936963,1745561432316,-1795.8889124,0.000299,8]
[358936964,1745561432325,-171.0,0.00029983,2]
[358936965,1745561432335,-204.7704457,0.00029983,30]
[358936966,1745561432344,-500.0,0.00029983,2]
[358936967,1745561432354,-500.0,0.00029983,2]
[358936968,1745561432364,-500.0,0.00029983,2]
[358936969,1745561432376,-500.0,0.00029983,2]
[358936970,1745561432386,-150.99999999,0.00029989,2]
[358936972,1745561432395,-151.0,0.00029989,2]
[358936974,1745561432407,-10446.03874236,0.0002999,2]
[358936976,1745561432419,-8400.0,0.0003,30]
[358936978,1745561432428,-195.81184236,0.0003,2]
[358936980,1745561432438,-733.74822271,0.0003,2]
[358936988,1745561438159,-500.0,0.00029983,2]
[358936989,1745561438169,-429.269,0.00029983,2]
[358936990,1745561438181,-70.731,0.00029983,2]
[358936991,1745561438192,-500.0,0.00029983,2]
[358936992,1745561438202,-21.154,0.00029983,2]
[358936993,1745561438313,-478.846,0.00029983,2]
[358936994,1745561438323,-500.0,0.00029983,2]
[358936995,1745561438332,-500.0,0.00029983,2]
[358936996,1745561438342,-500.0,0.00029983,2]
[358936997,1745561438352,-500.0,0.00029983,2]
[358936998,1745561438362,-500.0,0.00029983,2]
[358936999,1745561438373,-500.0,0.00029983,2]
[358937000,1745561438386,-500.0,0.00029983,2]
[358937001,1745561438395,-138.58094455,0.00029983,2]
[358937002,1745561438413,-361.41905545,0.00029983,2]
[358937003,1745561438424,-500.0,0.00029983,2]
[358937004,1745561438434,-500.0,0.00029983,2]
[358937005,1745561438443,-500.0,0.00029983,2]
[358937006,1745561438453,-500.0,0.00029983,2]
[358937007,1745561438463,-500.0,0.00029983,2]
[358937008,1745561438473,-500.0,0.00029983,2]
[358937009,1745561438483,-500.0,0.00029983,2]
[358937010,1745561438495,-500.0,0.00029983,2]
[358937011,1745561438506,-500.0,0.00029983,2]
[358937012,1745561438516,-500.0,0.00029983,2]
[358937013,1745561438526,-500.0,0.00029983,2]
[358937014,1745561438535,-500.0,0.00029983,2]
[358937015,1745561438545,-500.0,0.00029983,2]
[358937016,1745561438556,-500.0,0.00029983,2]
[358937017,1745561438565,-500.0,0.00029983,2]
[358937018,1745561438575,-500.0,0.00029983,2]
[358937019,1745561438585,-500.0,0.00029983,2]
[358937020,1745561438594,-500.0,0.00029983,2]
[358937021,1745561438604,-500.0,0.00029983,2]
[358937022,1745561438613,-500.0,0.00029983,2]
[358937023,1745561438623,-500.0,0.00029983,2]
[358937024,1745561438635,-288.53409455,0.00029983,2]
[358937049,1745561440398,-19.3968365,0.00029983,2]
[358937050,1745561440409,-500.0,0.00029983,2]
[358937051,1745561440422,-500.0,0.00029983,2]
[358937052,1745561440432,-500.0,0.00029983,2]
[358937053,1745561440441,-500.0,0.00029983,2]
[358937054,1745561440451,-500.0,0.00029983,2]
[358937055,1745561440461,-500.0,0.00029983,2]
[358937056,1745561440472,-848.46556705,0.0003,2]
[358937057,1745561440511,-1124.04100611,0.0003,2]
[358937058,1745561440575,-23570.2487,0.0003,2]
[358937062,1745561443134,-2741.39784647,0.0003,2]
[358937063,1745561443144,-212.11099282,0.00030493,2]
[358937064,1745561443153,-500.0,0.00030493,5]
[358937065,1745561443163,-269.26968033,0.00030493,5]
[358937066,1745561443198,-237.13390553,0.00030493,5]
[358937067,1745561443209,-1795.8889124,0.00030693,9]
[358937068,1745561443218,-53843.04914185,0.00031386,2]
[358937069,1745561443228,-815.61024151,0.00031386,4]
[358937070,1745561443238,-1795.8889124,0.00031486,10]
[358937071,1745561443247,-2471.564,0.00031733,2]
[358937072,1745561443256,-877.0,0.00031733,2]
[358937073,1745561443265,-1795.8889124,0.00032279,10]
[358937074,1745561443274,-299.99,0.00032279,30]
[358937075,1745561443284,-150.0,0.00032491,2]
[358937076,1745561443293,-1000.0,0.00032491,2]
[358937077,1745561443303,-500.0,0.00032632,2]
[358937078,1745561443312,-246.87,0.00032728,2]
[358937079,1745561443322,-200.0,0.00032768,2]
[358937080,1745561443332,-151.45,0.00032877,30]
[358937081,1745561443342,-1795.8889124,0.00033072,11]
[358937082,1745561443351,-806.53,0.00033081,2]
[358937083,1745561443360,-1094.32,0.00033186,2]
[358937084,1745561443370,-503.0,0.00033315,2]
[358937085,1745561443379,-207.4,0.0003338,2]
[358937086,1745561443391,-150.0,0.000335,2]
[358937087,1745561443400,-150.0,0.00033639,2]
[358937088,1745561443409,-157.34,0.00033757,2]
[358937089,1745561443421,-1795.8889124,0.00033866,11]
[358937090,1745561443431,-200.0,0.00033922,2]
[358937091,1745561443440,-782.001,0.00034023,2]
[358937092,1745561443450,-950.725,0.00034023,2]
[358937093,1745561443459,-164.08,0.00034023,2]
[358937094,1745561443469,-250.0,0.00034106,2]
[358937095,1745561443479,-500.0,0.00034112,2]
[358937097,1745561443488,-2807.14,0.00034113,2]
[358937099,1745561443499,-1214.68935794,0.00034208,2]
[358937100,1745561443510,-164.12,0.00034308,2]
[358937102,1745561443519,-1795.8889124,0.00034659,12]
[358937104,1745561443529,-1852.42,0.00034714,2]
[358937105,1745561443538,-287.726,0.00034733,2]
[358937107,1745561443549,-215.0738,0.00034749,2]
[358937109,1745561443559,-151.13,0.00035087,2]
[358937111,1745561443569,-332.66,0.00035413,2]
[358937139,1745561443849,-1094.32,0.0003545,2]
[358937140,1745561443860,-1795.8889124,0.00035452,12]
[358937141,1745561443869,-2721.04,0.00035465,2]
[358937142,1745561443879,-1214.68935789,0.00035571,2]
[358937143,1745561443889,-257.57,0.00035665,2]
[358937144,1745561443899,-256.92,0.00035831,2]
[358937145,1745561443909,-277.0309,0.000359,2]
[358937146,1745561443918,-495.4414609,0.00035911,5]
[358937147,1745561443928,-349.31,0.00036,7]
[358937148,1745561443938,-269.734,0.00036056,2]
[358937149,1745561443947,-200.0,0.00036087,2]
[358937150,1745561443956,-1998.19,0.00036087,2]
[358937151,1745561443966,-5362.26,0.0003611,2]
[358937152,1745561443975,-223.0315306,0.00036118,2]
[358937153,1745561443985,-187.58864629,0.00036155,2]
[358937154,1745561443994,-228.46586742,0.00036155,7]
[358937155,1745561444004,-180.1526644,0.00036155,15]
[358937156,1745561444013,-237.50739645,0.00036155,15]
[358937157,1745561444024,-500.0,0.00036155,15]
[358937158,1745561444033,-500.0,0.00036155,15]
[358937159,1745561444042,-475.87991179,0.00036155,15]
[358937160,1745561444051,-500.0,0.00036155,15]
[358937161,1745561444061,-500.0,0.00036155,15]
[358937162,1745561444070,-500.0,0.00036155,15]
[358937163,1745561444080,-500.0,0.00036155,15]
[358937164,1745561444089,-500.0,0.00036155,15]
[358937165,1745561444099,-350.04833778,0.00036155,15]
[358937166,1745561444108,-500.0,0.00036155,15]
[358937167,1745561444118,-9860.85723837,0.00036157,2]
[358937169,1745561446014,-268.11,0.00035447,2]
[358937170,1745561446023,-232.26674175,0.00036157,2]
[358937171,1745561446035,-3316.99601988,0.00036157,2]
[358937172,1745561446044,-163.31,0.00036183,2]
[358937173,1745561446053,-150.0,0.00036193,7]
[358937174,1745561446064,-703.74,0.000362,2]
[358937175,1745561446073,-229.39208918,0.00036245,13]
[358937195,1745561521704,200.0,0.00036145,117]
[358937196,1745561521765,200.0,0.00036287,117]
[358937197,1745561527137,4081.98,0.000378,60]
[358937198,1745561551774,6119.3,0.00037808,60]
[358937199,1745561597268,211.042515,0.00037798,120]
[358937201,1745562094435,1924.31150499,0.00019,3]
[358937202,1745562102228,2932.9070085,0.00037,60]
[358937239,1745562602294,2000.0,0.0002,4]
[358937248,1745562632410,-561.48680741,0.000199,2]
[358937249,1745562632422,-1207.6356192,0.000199,2]
[358937250,1745562632431,-201.9098211,0.000199,2]
[358937251,1745562632440,-427.88447466,0.000199,2]
[358937252,1745562632454,-2093.49077621,0.000199,2]
[358937253,1745562632463,-392.22608706,0.00019908,2]
[358937254,1745562632498,-1376.89633949,0.00019908,2]
[358937255,1745562632507,-1769.12242655,0.00019916,2]
[358937256,1745562632516,-1769.12242655,0.00019924,2]
[358937257,1745562632526,-1769.12242655,0.00019932,2]
[358937258,1745562632536,-177.32890439,0.00019939,2]
[358937259,1745562632580,-1591.79352216,0.00019939,2]
[358937260,1745562632591,-1769.12242655,0.00019947,2]
[358937261,1745562632600,-200.0,0.0001995,2]
[358937262,1745562632610,-1769.12242655,0.00019955,2]
[358937263,1745562632619,-1769.12242655,0.00019963,2]
[358937264,1745562632629,-1769.12242655,0.00019971,2]
[358937265,1745562632638,-500.0,0.00019998,2]
[358937266,1745562632647,-500.0,0.00019998,2]
[358937267,1745562632658,-500.0,0.00019998,2]
[358937269,1745562632668,-500.0,0.00019998,2]
[358937271,1745562632677,-444.15647406,0.00019998,2]
[358937309,1745562641610,-284.35787968,0.000199,2]
[358937310,1745562641622,-95.75556197,0.00019931,2]
[358937311,1745562641635,-404.24443803,0.00019931,2]
[358937312,1745562641644,-500.0,0.00019931,2]
[358937313,1745562641654,-500.0,0.00019931,2]
[358937314,1745562641664,-500.0,0.00019931,2]
[358937315,1745562641674,-481.05226645,0.00019931,2]
[358937316,1745562641684,-500.0,0.00019931,2]
[358937317,1745562641695,-500.0,0.00019931,2]
[358937318,1745562641704,-500.0,0.00019931,2]
[358937319,1745562641714,-500.0,0.00019931,2]
[358937320,1745562641724,-500.0,0.00019931,2]
[358937321,1745562641733,-500.0,0.00019931,2]
[358937322,1745562641743,-500.0,0.00019931,2]
[358937323,1745562641753,-500.0,0.00019931,2]
[358937324,1745562641763,-210.66175413,0.0001999,2]
[358937325,1745562641773,-166.25517751,0.00019999,2]
[358937326,1745562641783,-159.92610719,0.00019999,2]
[358937327,1745562641791,-185.54803798,0.0002,2]
[358937328,1745562641801,-65739.99410719,0.0002,2]
[358937329,1745562641811,-4278756.71043202,0.0002,2]
[358937330,1745562641820,-572422.51542018,0.0002,2]
[358937331,1745562642047,-5726.2882867,0.0002,2]
[358937332,1745562642112,-934.69,0.0002,2]
[358937333,1745562642131,-402.56895293,0.0002,2]
[358937339,1745562643378,-80918.83740736,0.0002,2]
[358937340,1745562643471,-502.34944021,0.0002,2]
[358937341,1745562643490,-934.68966433,0.0002,2]
[358937342,1745562643503,-1887.20340743,0.0002,2]
[358937592,1745562646252,-10113.87377,0.0002,2]
[358937595,1745562646270,-11955.47914913,0.0002,2]
[358937641,1745562646723,-2139.83289422,0.0002,2]
[358937885,1745562928159,250.0,0.00017,2]